[Event "*** Titled Tuesday Blitz"]
[Site "Chess.com"]
[Date "2020.05.05"]
[Round "8"]
[White "agrigo3"]
[Black "madalin18"]
[Result "0-1"]
[WhiteElo "2297"]
[BlackElo "2168"]
[TimeControl "180+1"]
[EndTime "11:36:55 PDT"]
[Termination "madalin18 won on time"]

1. Nf3 {[%clk 0:03:00.9]} 1... Nf6 {[%clk 0:02:58.2]} 2. g3 {[%clk 0:02:58.8]}
2... g6 {[%clk 0:02:58.6]} 3. Bg2 {[%clk 0:02:59]} 3... Bg7 {[%clk 0:02:59.1]}
4. O-O {[%clk 0:02:59.6]} 4... O-O {[%clk 0:02:59.4]} 5. d3 {[%clk 0:02:59.8]}
5... d6 {[%clk 0:02:58.1]} 6. e4 {[%clk 0:02:57.4]} 6... e5 {[%clk 0:02:56.1]}
7. a4 {[%clk 0:02:57.1]} 7... c6 {[%clk 0:02:52.9]} 8. Nbd2 {[%clk 0:02:53.5]}
8... h6 {[%clk 0:02:51.2]} 9. Nc4 {[%clk 0:02:49.9]} 9... Be6 {[%clk 0:02:50.7]}
10. Qe2 {[%clk 0:02:46.6]} 10... Qd7 {[%clk 0:02:50.4]} 11. Re1 {[%clk
0:02:38.8]} 11... Na6 {[%clk 0:02:50]} 12. Bd2 {[%clk 0:02:31.8]} 12... Rad8
{[%clk 0:02:43]} 13. b4 {[%clk 0:02:31.4]} 13... Bh3 {[%clk 0:02:37.2]} 14. Bh1
{[%clk 0:02:25.4]} 14... Nh5 {[%clk 0:02:29.5]} 15. Rab1 {[%clk 0:02:05]} 15...
Nc7 {[%clk 0:02:21.6]} 16. c3 {[%clk 0:01:34.9]} 16... Ne6 {[%clk 0:02:18.7]}
17. Be3 {[%clk 0:01:31.8]} 17... b5 {[%clk 0:02:07.2]} 18. Ncd2 {[%clk
0:01:18.2]} 18... Nef4 {[%clk 0:02:04.6]} 19. Bxf4 {[%clk 0:01:16.2]} 19... Nxf4
{[%clk 0:02:02.7]} 20. Qe3 {[%clk 0:01:14.7]} 20... Qg4 {[%clk 0:01:36.2]} 21.
Nf1 {[%clk 0:01:09.8]} 21... d5 {[%clk 0:01:24.6]} 22. exd5 {[%clk 0:01:02]}
22... cxd5 {[%clk 0:01:24.2]} 23. d4 {[%clk 0:00:55.9]} 23... exd4 {[%clk
0:01:05.4]} 24. Qxf4 {[%clk 0:00:54.8]} 24... Qxf4 {[%clk 0:01:03.3]} 25. gxf4
{[%clk 0:00:54.7]} 25... dxc3 {[%clk 0:01:03.5]} 26. Ne5 {[%clk 0:00:51.5]}
26... d4 {[%clk 0:01:00.6]} 27. Be4 {[%clk 0:00:30]} 27... Bxe5 {[%clk
0:00:49.8]} 28. fxe5 {[%clk 0:00:29.3]} 28... Bxf1 {[%clk 0:00:50]} 29. Kxf1
{[%clk 0:00:28.3]} 29... d3 {[%clk 0:00:50.3]} 30. Rec1 {[%clk 0:00:19.3]} 30...
c2 {[%clk 0:00:48.3]} 31. Ra1 {[%clk 0:00:17.2]} 31... d2 {[%clk 0:00:47.1]} 32.
Rxc2 {[%clk 0:00:17.4]} 32... d1=Q+ {[%clk 0:00:46.5]} 33. Rxd1 {[%clk
0:00:17.8]} 33... Rxd1+ {[%clk 0:00:46.9]} 34. Ke2 {[%clk 0:00:18.4]} 34... Rfd8
{[%clk 0:00:45.1]} 35. axb5 {[%clk 0:00:16.9]} 35... R1d4 {[%clk 0:00:44.4]} 36.
Bc6 {[%clk 0:00:16.6]} 36... Rxb4 {[%clk 0:00:42.4]} 37. Ra2 {[%clk 0:00:16.4]}
37... Kg7 {[%clk 0:00:39.5]} 38. Rxa7 {[%clk 0:00:16.3]} 38... Rb2+ {[%clk
0:00:39.1]} 39. Kf3 {[%clk 0:00:15.9]} 39... Rd3+ {[%clk 0:00:35.8]} 40. Ke4
{[%clk 0:00:15.2]} 40... Rdd2 {[%clk 0:00:34.8]} 41. e6 {[%clk 0:00:13.8]} 41...
Re2+ {[%clk 0:00:34.2]} 42. Kd3 {[%clk 0:00:14]} 42... Rxe6 {[%clk 0:00:32.2]}
43. Bd5 {[%clk 0:00:14.1]} 43... Rd6 {[%clk 0:00:31.2]} 44. Kc4 {[%clk
0:00:13.3]} 44... Rxf2 {[%clk 0:00:30.5]} 45. b6 {[%clk 0:00:12.7]} 45... Rxb6
{[%clk 0:00:29.7]} 46. Kc5 {[%clk 0:00:10]} 46... Rb1 {[%clk 0:00:27.4]} 47. Bc4
{[%clk 0:00:08.7]} 47... Rc1 {[%clk 0:00:27]} 48. Kd5 {[%clk 0:00:08.5]} 48...
Rd2+ {[%clk 0:00:26.5]} 49. Kc5 {[%clk 0:00:07.6]} 49... Rxc4+ {[%clk
0:00:24.7]} 50. Kxc4 {[%clk 0:00:06.9]} 50... g5 {[%clk 0:00:25.2]} 51. h3
{[%clk 0:00:05.3]} 51... Kg6 {[%clk 0:00:25.2]} 52. Ra3 {[%clk 0:00:04]} 52...
f5 {[%clk 0:00:24.8]} 53. Kc3 {[%clk 0:00:04.3]} 53... Rd7 {[%clk 0:00:24.3]}
54. Ra6+ {[%clk 0:00:04]} 54... Kh5 {[%clk 0:00:23.8]} 55. Kc4 {[%clk
0:00:04.3]} 55... f4 {[%clk 0:00:23]} 56. Rf6 {[%clk 0:00:04]} 56... Rd1 {[%clk
0:00:20.6]} 57. Rf5 {[%clk 0:00:03.7]} 57... Kh4 {[%clk 0:00:19.2]} 58. Rf6
{[%clk 0:00:03.5]} 58... Kg3 {[%clk 0:00:19]} 59. Rxh6 {[%clk 0:00:03.3]} 59...
f3 {[%clk 0:00:18.9]} 60. Rg6 {[%clk 0:00:03.7]} 60... Kf4 {[%clk 0:00:18.3]}
61. Rf6+ {[%clk 0:00:03.5]} 61... Ke3 {[%clk 0:00:17.8]} 62. Re6+ {[%clk
0:00:02]} 62... Kf4 {[%clk 0:00:16.5]} 63. Rf6+ {[%clk 0:00:02.1]} 63... Kg3
{[%clk 0:00:16.5]} 64. Rf5 {[%clk 0:00:01.3]} 64... f2 {[%clk 0:00:16.1]} 65.
Rxg5+ {[%clk 0:00:01.5]} 65... Kxh3 {[%clk 0:00:15.2]} 66. Rf5 {[%clk
0:00:01.5]} 66... f1=Q+ {[%clk 0:00:14.8]} 0-1

[Event "*** Titled Tuesday Blitz"]
[Site "Chess.com"]
[Date "2020.05.05"]
[Round "8"]
[White "dragos420"]
[Black "floplover"]
[Result "0-1"]
[WhiteElo "2499"]
[BlackElo "2307"]
[TimeControl "180+1"]
[EndTime "11:36:56 PDT"]
[Termination "floplover won by checkmate"]

1. e4 {[%clk 0:03:00.9]} 1... c6 {[%clk 0:02:52.9]} 2. Nc3 {[%clk 0:02:59.9]}
2... d5 {[%clk 0:02:53.8]} 3. Qf3 {[%clk 0:03:00.5]} 3... dxe4 {[%clk
0:02:46.2]} 4. Nxe4 {[%clk 0:03:01.4]} 4... Nf6 {[%clk 0:02:46.4]} 5. Nxf6+
{[%clk 0:02:49.2]} 5... exf6 {[%clk 0:02:47.3]} 6. Ne2 {[%clk 0:02:47]} 6... Bd6
{[%clk 0:02:44.4]} 7. Ng3 {[%clk 0:02:45.4]} 7... O-O {[%clk 0:02:38]} 8. d4
{[%clk 0:02:44.6]} 8... Re8+ {[%clk 0:02:30.2]} 9. Be3 {[%clk 0:02:44.2]} 9...
g6 {[%clk 0:02:12.4]} 10. O-O-O {[%clk 0:02:35.2]} 10... Qa5 {[%clk 0:01:53.8]}
11. Kb1 {[%clk 0:02:25.6]} 11... Be6 {[%clk 0:01:27.7]} 12. b3 {[%clk
0:02:23.2]} 12... Nd7 {[%clk 0:01:25.5]} 13. Ne4 {[%clk 0:02:09.6]} 13... Be7
{[%clk 0:01:23.8]} 14. h4 {[%clk 0:02:06.3]} 14... Bd5 {[%clk 0:01:15.4]} 15. c4
{[%clk 0:01:55.9]} 15... Bxe4+ {[%clk 0:01:10.2]} 16. Qxe4 {[%clk 0:01:56.8]}
16... f5 {[%clk 0:00:52.5]} 17. Qc2 {[%clk 0:01:52.9]} 17... Bf8 {[%clk
0:00:42.6]} 18. h5 {[%clk 0:01:52]} 18... Bg7 {[%clk 0:00:41]} 19. hxg6 {[%clk
0:01:51.9]} 19... hxg6 {[%clk 0:00:30]} 20. Bd3 {[%clk 0:01:51.4]} 20... Nf6
{[%clk 0:00:29.3]} 21. Bd2 {[%clk 0:01:43.9]} 21... Qb6 {[%clk 0:00:24.2]} 22.
Rh4 {[%clk 0:01:21.3]} 22... Rad8 {[%clk 0:00:19.2]} 23. f3 {[%clk 0:01:11.5]}
23... c5 {[%clk 0:00:14.2]} 24. d5 {[%clk 0:01:08.8]} 24... Nxd5 {[%clk
0:00:10.7]} 25. Bg5 {[%clk 0:00:45.7]} 25... Nb4 {[%clk 0:00:09.6]} 26. Bxd8
{[%clk 0:00:41.8]} 26... Qxd8 {[%clk 0:00:07.1]} 27. Qf2 {[%clk 0:00:18.4]}
27... Qf6 {[%clk 0:00:06.6]} 28. Rd4 {[%clk 0:00:15.5]} 28... Qxd4 {[%clk
0:00:05.6]} 29. Qxd4 {[%clk 0:00:15.7]} 29... Bxd4 {[%clk 0:00:06.2]} 30. Bf1
{[%clk 0:00:16.6]} 30... Nc6 {[%clk 0:00:05]} 31. a3 {[%clk 0:00:17]} 31... Bf2
{[%clk 0:00:04.7]} 32. Kc2 {[%clk 0:00:16]} 32... Re1 {[%clk 0:00:04.9]} 33.
Rxe1 {[%clk 0:00:13.4]} 33... Bxe1 {[%clk 0:00:05.8]} 34. g4 {[%clk 0:00:13.1]}
34... fxg4 {[%clk 0:00:05.7]} 35. fxg4 {[%clk 0:00:14]} 35... f6 {[%clk
0:00:06.1]} 36. Bg2 {[%clk 0:00:14.3]} 36... Bg3 {[%clk 0:00:05.9]} 37. Kd3
{[%clk 0:00:14]} 37... Ne5+ {[%clk 0:00:04.2]} 38. Ke2 {[%clk 0:00:12.6]} 38...
b6 {[%clk 0:00:05.1]} 39. Bd5+ {[%clk 0:00:11.9]} 39... Kg7 {[%clk 0:00:04.9]}
40. b4 {[%clk 0:00:11.3]} 40... Nxg4 {[%clk 0:00:04.8]} 41. Kf3 {[%clk 0:00:11]}
41... Ne5+ {[%clk 0:00:03.8]} 42. Kxg3 {[%clk 0:00:11]} 42... f5 {[%clk
0:00:03.7]} 43. Kf4 {[%clk 0:00:11.3]} 43... Kf6 {[%clk 0:00:04.3]} 44. bxc5
{[%clk 0:00:11.5]} 44... g5+ {[%clk 0:00:05.2]} 45. Kg3 {[%clk 0:00:11.3]} 45...
bxc5 {[%clk 0:00:06.1]} 46. Kf2 {[%clk 0:00:12.2]} 46... f4 {[%clk 0:00:06.4]}
47. Kg2 {[%clk 0:00:12.6]} 47... Kf5 {[%clk 0:00:07.3]} 48. Kf2 {[%clk 0:00:13]}
48... g4 {[%clk 0:00:08.2]} 49. Kg2 {[%clk 0:00:13.4]} 49... f3+ {[%clk
0:00:08.3]} 50. Kg3 {[%clk 0:00:13]} 50... Nd3 {[%clk 0:00:08.1]} 51. Bb7 {[%clk
0:00:12.3]} 51... Nb2 {[%clk 0:00:07.7]} 52. Bc8+ {[%clk 0:00:11.9]} 52... Ke5
{[%clk 0:00:08]} 53. Bxg4 {[%clk 0:00:12.3]} 53... Nxc4 {[%clk 0:00:08.1]} 54.
Bxf3 {[%clk 0:00:13.2]} 54... Nxa3 {[%clk 0:00:08.3]} 55. Kf2 {[%clk 0:00:13.9]}
55... Kd4 {[%clk 0:00:08.9]} 56. Ke1 {[%clk 0:00:14.1]} 56... Kc3 {[%clk
0:00:09.2]} 57. Kd1 {[%clk 0:00:14.2]} 57... c4 {[%clk 0:00:09.4]} 58. Kc1
{[%clk 0:00:14.1]} 58... Nb5 {[%clk 0:00:10]} 59. Bc6 {[%clk 0:00:13]} 59... Nd4
{[%clk 0:00:10.5]} 60. Ba4 {[%clk 0:00:13.4]} 60... a5 {[%clk 0:00:10.7]} 61.
Bd1 {[%clk 0:00:13.1]} 61... Nb3+ {[%clk 0:00:10.8]} 62. Kb1 {[%clk 0:00:13.1]}
62... a4 {[%clk 0:00:10.8]} 63. Ka2 {[%clk 0:00:11.2]} 63... Kd2 {[%clk
0:00:08.6]} 64. Bh5 {[%clk 0:00:11.2]} 64... c3 {[%clk 0:00:08.9]} 65. Bg6
{[%clk 0:00:11.4]} 65... Nc5 {[%clk 0:00:07.8]} 66. Ka3 {[%clk 0:00:11.2]} 66...
Nd3 {[%clk 0:00:08]} 67. Kxa4 {[%clk 0:00:08.2]} 67... c2 {[%clk 0:00:08.2]} 68.
Bxd3 {[%clk 0:00:07.4]} 68... Kxd3 {[%clk 0:00:08]} 69. Kb3 {[%clk 0:00:08.3]}
69... c1=Q {[%clk 0:00:08.2]} 70. Kb4 {[%clk 0:00:09.2]} 70... Kd4 {[%clk
0:00:07.5]} 71. Kb3 {[%clk 0:00:10.1]} 71... Qc3+ {[%clk 0:00:07]} 72. Ka4
{[%clk 0:00:11]} 72... Qb2 {[%clk 0:00:07.1]} 73. Ka5 {[%clk 0:00:11.2]} 73...
Kc5 {[%clk 0:00:07.5]} 74. Ka4 {[%clk 0:00:12.1]} 74... Qb4# {[%clk 0:00:07.6]}
0-1

[Event "*** Titled Tuesday Blitz"]
[Site "Chess.com"]
[Date "2020.05.05"]
[Round "8"]
[White "platy3"]
[Black "StegariuVlad"]
[Result "1-0"]
[WhiteElo "2718"]
[BlackElo "2538"]
[TimeControl "180+1"]
[EndTime "11:36:58 PDT"]
[Termination "platy3 won by checkmate"]

1. e4 {[%clk 0:03:00.9]} 1... e5 {[%clk 0:02:57.1]} 2. Nf3 {[%clk 0:03:00.8]}
2... Nc6 {[%clk 0:02:56.2]} 3. Bb5 {[%clk 0:03:01.3]} 3... a6 {[%clk 0:02:55.6]}
4. Ba4 {[%clk 0:03:01.6]} 4... Nf6 {[%clk 0:02:53.9]} 5. O-O {[%clk 0:03:02.1]}
5... Be7 {[%clk 0:02:53.9]} 6. Re1 {[%clk 0:03:02.6]} 6... b5 {[%clk 0:02:53.8]}
7. Bb3 {[%clk 0:03:03.1]} 7... d6 {[%clk 0:02:53.9]} 8. c3 {[%clk 0:03:03.7]}
8... O-O {[%clk 0:02:53.3]} 9. h3 {[%clk 0:03:04.2]} 9... Na5 {[%clk 0:02:52.4]}
10. Bc2 {[%clk 0:03:04.4]} 10... c5 {[%clk 0:02:53]} 11. d4 {[%clk 0:03:05]}
11... cxd4 {[%clk 0:02:53.8]} 12. cxd4 {[%clk 0:03:04.9]} 12... Qc7 {[%clk
0:02:53.6]} 13. Nbd2 {[%clk 0:03:03.9]} 13... Bb7 {[%clk 0:02:51]} 14. d5 {[%clk
0:02:54]} 14... Rac8 {[%clk 0:02:47.4]} 15. Bd3 {[%clk 0:02:52]} 15... Nc4
{[%clk 0:02:44.2]} 16. b3 {[%clk 0:02:48.4]} 16... Nxd2 {[%clk 0:02:43.6]} 17.
Bxd2 {[%clk 0:02:49.3]} 17... Nd7 {[%clk 0:02:39.9]} 18. a4 {[%clk 0:02:38.3]}
18... Nc5 {[%clk 0:02:37.2]} 19. Bf1 {[%clk 0:02:36.9]} 19... Ra8 {[%clk
0:02:22]} 20. axb5 {[%clk 0:02:27.8]} 20... axb5 {[%clk 0:02:17.6]} 21. Rxa8
{[%clk 0:02:28.7]} 21... Rxa8 {[%clk 0:02:17.3]} 22. Bxb5 {[%clk 0:02:29.6]}
22... Qb6 {[%clk 0:02:15.8]} 23. Bc4 {[%clk 0:02:28.9]} 23... Ba6 {[%clk
0:02:08.1]} 24. Be3 {[%clk 0:02:23.1]} 24... Bxc4 {[%clk 0:02:07.8]} 25. bxc4
{[%clk 0:02:24]} 25... Qb4 {[%clk 0:02:05.6]} 26. Qc2 {[%clk 0:02:23]} 26... f5
{[%clk 0:01:43.2]} 27. exf5 {[%clk 0:02:15.6]} 27... e4 {[%clk 0:01:42.6]} 28.
Nd2 {[%clk 0:02:14.2]} 28... Nd3 {[%clk 0:01:38.4]} 29. Rb1 {[%clk 0:02:12.7]}
29... Qa3 {[%clk 0:01:36.6]} 30. Nxe4 {[%clk 0:02:09.7]} 30... Ne5 {[%clk
0:01:27.7]} 31. c5 {[%clk 0:01:48.8]} 31... dxc5 {[%clk 0:01:27.3]} 32. d6
{[%clk 0:01:47.1]} 32... Bf8 {[%clk 0:01:23.6]} 33. Bxc5 {[%clk 0:01:46.6]}
33... Qa6 {[%clk 0:01:05.5]} 34. Qb3+ {[%clk 0:01:26.7]} 34... Kh8 {[%clk
0:01:03.8]} 35. Qd5 {[%clk 0:01:15.7]} 35... Qd3 {[%clk 0:00:42.6]} 36. Qxa8
{[%clk 0:01:06.9]} 36... Qxb1+ {[%clk 0:00:42.5]} 37. Kh2 {[%clk 0:01:07.5]}
37... Nd7 {[%clk 0:00:43.3]} 38. Qe8 {[%clk 0:00:59]} 38... h6 {[%clk
0:00:40.8]} 39. f6 {[%clk 0:00:52.3]} 39... Kh7 {[%clk 0:00:31.6]} 40. Bd4
{[%clk 0:00:44.7]} 40... Qd3 {[%clk 0:00:05.6]} 41. fxg7 {[%clk 0:00:41.1]}
41... Qxd4 {[%clk 0:00:05.1]} 42. gxf8=Q {[%clk 0:00:37.4]} 42... Nxf8 {[%clk
0:00:05.2]} 43. Qf7+ {[%clk 0:00:36.1]} 43... Qg7 {[%clk 0:00:05.5]} 44. Nf6+
{[%clk 0:00:35.2]} 44... Kh8 {[%clk 0:00:05.6]} 45. Qxg7+ {[%clk 0:00:33.6]}
45... Kxg7 {[%clk 0:00:06.1]} 46. d7 {[%clk 0:00:32.1]} 46... Ne6 {[%clk
0:00:06.5]} 47. Ne4 {[%clk 0:00:32.5]} 47... Nd8 {[%clk 0:00:06.1]} 48. g4
{[%clk 0:00:31.8]} 48... Kf7 {[%clk 0:00:06.7]} 49. Kg3 {[%clk 0:00:32]} 49...
Ke6 {[%clk 0:00:07.1]} 50. Kh4 {[%clk 0:00:29.2]} 50... Kxd7 {[%clk 0:00:07.2]}
51. Kh5 {[%clk 0:00:29.8]} 51... Nf7 {[%clk 0:00:07.4]} 52. Kg6 {[%clk
0:00:30.1]} 52... Ke7 {[%clk 0:00:07.9]} 53. f4 {[%clk 0:00:28.5]} 53... Kf8
{[%clk 0:00:07.4]} 54. Nf6 {[%clk 0:00:27.9]} 54... Nd6 {[%clk 0:00:07.5]} 55.
Kxh6 {[%clk 0:00:27.7]} 55... Kf7 {[%clk 0:00:07.9]} 56. Kg5 {[%clk 0:00:27.5]}
56... Nb5 {[%clk 0:00:06.3]} 57. Ne4 {[%clk 0:00:25.5]} 57... Nd4 {[%clk
0:00:06.5]} 58. f5 {[%clk 0:00:25.4]} 58... Kg7 {[%clk 0:00:06.7]} 59. Kf4
{[%clk 0:00:25]} 59... Kh6 {[%clk 0:00:06]} 60. h4 {[%clk 0:00:22.7]} 60... Kg7
{[%clk 0:00:05.3]} 61. g5 {[%clk 0:00:22.3]} 61... Nc6 {[%clk 0:00:05.1]} 62. h5
{[%clk 0:00:22.3]} 62... Kh7 {[%clk 0:00:05.1]} 63. f6 {[%clk 0:00:21.9]} 63...
Kg8 {[%clk 0:00:05.5]} 64. Kf5 {[%clk 0:00:21]} 64... Nd4+ {[%clk 0:00:06.1]}
65. Kg6 {[%clk 0:00:21]} 65... Ne6 {[%clk 0:00:06.2]} 66. Kf5 {[%clk 0:00:18]}
66... Nf8 {[%clk 0:00:05.1]} 67. g6 {[%clk 0:00:17.6]} 67... Kh8 {[%clk
0:00:05.2]} 68. h6 {[%clk 0:00:17.3]} 68... Nd7 {[%clk 0:00:03.6]} 69. Ng5
{[%clk 0:00:16]} 69... Kg8 {[%clk 0:00:03.6]} 70. h7+ {[%clk 0:00:14.7]} 70...
Kh8 {[%clk 0:00:03]} 71. Nf7# {[%clk 0:00:14.8]} 1-0

[Event "*** Titled Tuesday Blitz"]
[Site "Chess.com"]
[Date "2020.05.05"]
[Round "8"]
[White "zmeeed67"]
[Black "CSB7"]
[Result "1/2-1/2"]
[WhiteElo "2404"]
[BlackElo "2538"]
[TimeControl "180+1"]
[EndTime "11:36:59 PDT"]
[Termination "Game drawn - insufficient material"]

1. d4 {[%clk 0:03:00.9]} 1... Nf6 {[%clk 0:02:59]} 2. c4 {[%clk 0:03:01.3]} 2...
e6 {[%clk 0:02:57.8]} 3. Nc3 {[%clk 0:03:01.7]} 3... Bb4 {[%clk 0:02:55.9]} 4.
f3 {[%clk 0:03:01.8]} 4... c5 {[%clk 0:02:52.3]} 5. d5 {[%clk 0:03:01.9]} 5...
O-O {[%clk 0:02:51.2]} 6. e4 {[%clk 0:03:01.9]} 6... b5 {[%clk 0:02:51.6]} 7.
Bd2 {[%clk 0:03:01.6]} 7... d6 {[%clk 0:02:32.4]} 8. Nxb5 {[%clk 0:02:56.4]}
8... Na6 {[%clk 0:02:22.7]} 9. Bd3 {[%clk 0:02:40.3]} 9... Rb8 {[%clk
0:02:18.8]} 10. Ne2 {[%clk 0:02:32.9]} 10... Bxd2+ {[%clk 0:02:08.1]} 11. Qxd2
{[%clk 0:02:32.8]} 11... Nb4 {[%clk 0:02:03.2]} 12. b3 {[%clk 0:01:54.8]} 12...
exd5 {[%clk 0:01:31.4]} 13. exd5 {[%clk 0:01:53.7]} 13... Re8 {[%clk 0:01:18.8]}
14. O-O {[%clk 0:01:52]} 14... a6 {[%clk 0:01:07.9]} 15. Nbc3 {[%clk 0:01:50.8]}
15... Nxd3 {[%clk 0:01:05.7]} 16. Qxd3 {[%clk 0:01:50.6]} 16... Bd7 {[%clk
0:01:03.8]} 17. Rfe1 {[%clk 0:01:49]} 17... a5 {[%clk 0:01:00.3]} 18. Ng3 {[%clk
0:01:45]} 18... Qb6 {[%clk 0:00:55.2]} 19. Nce4 {[%clk 0:01:32.7]} 19... Nxe4
{[%clk 0:00:52.1]} 20. Rxe4 {[%clk 0:01:33.2]} 20... a4 {[%clk 0:00:50.4]} 21.
Rae1 {[%clk 0:01:11.8]} 21... Rxe4 {[%clk 0:00:44.3]} 22. Nxe4 {[%clk
0:01:11.5]} 22... axb3 {[%clk 0:00:22.1]} 23. axb3 {[%clk 0:00:53.2]} 23... Bf5
{[%clk 0:00:21.5]} 24. Nf6+ {[%clk 0:00:37.7]} 24... gxf6 {[%clk 0:00:20.4]} 25.
Qxf5 {[%clk 0:00:38.6]} 25... Qxb3 {[%clk 0:00:20.4]} 26. Qxf6 {[%clk
0:00:20.3]} 26... Qxc4 {[%clk 0:00:09.3]} 27. Re4 {[%clk 0:00:14]} 27... Qc1+
{[%clk 0:00:06.8]} 28. Kf2 {[%clk 0:00:14.1]} 28... Qb2+ {[%clk 0:00:06]} 29.
Qxb2 {[%clk 0:00:13.7]} 29... Rxb2+ {[%clk 0:00:06.9]} 30. Kg3 {[%clk
0:00:09.1]} 30... Rd2 {[%clk 0:00:06.8]} 31. Kf4 {[%clk 0:00:05.1]} 31... Rxd5
{[%clk 0:00:06.5]} 32. g4 {[%clk 0:00:05.6]} 32... Kg7 {[%clk 0:00:06.7]} 33. h4
{[%clk 0:00:05.1]} 33... h5 {[%clk 0:00:04.8]} 34. g5 {[%clk 0:00:04]} 34... Kg6
{[%clk 0:00:05.3]} 35. Ke3 {[%clk 0:00:01.9]} 35... f6 {[%clk 0:00:02.6]} 36. f4
{[%clk 0:00:01.5]} 36... fxg5 {[%clk 0:00:02.5]} 37. fxg5 {[%clk 0:00:02.4]}
37... Kf5 {[%clk 0:00:02.3]} 38. Re8 {[%clk 0:00:02.2]} 38... Re5+ {[%clk
0:00:02.3]} 39. Rxe5+ {[%clk 0:00:02.2]} 39... Kxe5 {[%clk 0:00:03.2]} 40. Kd3
{[%clk 0:00:02.2]} 40... d5 {[%clk 0:00:03.2]} 41. Ke3 {[%clk 0:00:02.1]} 41...
d4+ {[%clk 0:00:03.5]} 42. Kd3 {[%clk 0:00:02.4]} 42... Kd5 {[%clk 0:00:04.1]}
43. Kd2 {[%clk 0:00:02.8]} 43... c4 {[%clk 0:00:04.6]} 44. Kc2 {[%clk
0:00:03.2]} 44... Ke5 {[%clk 0:00:04.6]} 45. Kd2 {[%clk 0:00:03.3]} 45... Kf5
{[%clk 0:00:04.2]} 46. Ke2 {[%clk 0:00:03.4]} 46... c3 {[%clk 0:00:02.9]} 47.
Kd3 {[%clk 0:00:03.7]} 47... Kg6 {[%clk 0:00:02.5]} 48. Kc2 {[%clk 0:00:03.8]}
48... Kf5 {[%clk 0:00:02.9]} 49. Kd3 {[%clk 0:00:04.2]} 49... Ke5 {[%clk
0:00:03]} 50. Kc2 {[%clk 0:00:04.2]} 50... Kd6 {[%clk 0:00:02.7]} 51. Kd3 {[%clk
0:00:04]} 51... Kd5 {[%clk 0:00:03.2]} 52. Kc2 {[%clk 0:00:04.2]} 52... Ke6
{[%clk 0:00:01.9]} 53. Kd3 {[%clk 0:00:04.4]} 53... Kd5 {[%clk 0:00:02.3]} 54.
Kc2 {[%clk 0:00:04.4]} 54... Kc4 {[%clk 0:00:02.7]} 55. g6 {[%clk 0:00:04.2]}
55... d3+ {[%clk 0:00:03.3]} 56. Kd1 {[%clk 0:00:03.8]} 56... Kb3 {[%clk
0:00:01.5]} 57. g7 {[%clk 0:00:03.4]} 57... Kb2 {[%clk 0:00:01.4]} 58. g8=Q
{[%clk 0:00:03]} 58... c2+ {[%clk 0:00:01.9]} 59. Kd2 {[%clk 0:00:02.3]} 59...
c1=Q+ {[%clk 0:00:02.5]} 60. Kxd3 {[%clk 0:00:03.2]} 60... Qc3+ {[%clk
0:00:02.7]} 61. Ke4 {[%clk 0:00:02.9]} 61... Qb4+ {[%clk 0:00:02.9]} 62. Kf5
{[%clk 0:00:02.8]} 62... Qxh4 {[%clk 0:00:03.3]} 63. Qb8+ {[%clk 0:00:02.9]}
63... Kc2 {[%clk 0:00:03.5]} 64. Qc7+ {[%clk 0:00:02.1]} 64... Kd2 {[%clk
0:00:03.6]} 65. Qf4+ {[%clk 0:00:02]} 65... Qxf4+ {[%clk 0:00:03.4]} 66. Kxf4
{[%clk 0:00:02.9]} 66... h4 {[%clk 0:00:04.2]} 67. Kg4 {[%clk 0:00:02.9]} 67...
h3 {[%clk 0:00:05.1]} 68. Kxh3 {[%clk 0:00:03.3]} 1/2-1/2